bitfinex/quotes_BTCUSD_20220201
["timestamp","ask_amount","ask_price","bid_price","bid_amount"]
[1643742615325,0.01990645,38551.0,38549.0,0.11487133]
[1643742615726,0.01990645,38551.0,38548.0,0.1809407]
[1643742616125,0.29874179,38555.0,38548.0,0.1809407]
[1643742616126,0.29617161,38553.0,38548.0,0.1809407]
[1643742616325,0.24980115,38552.0,38548.0,0.1809407]
[1643742616526,0.28008389,38556.0,38548.0,0.17973698]
[1643742616726,0.48812104,38557.0,38550.0,0.05]
[1643742616727,0.164875,38557.0,38550.0,0.05]
[1643742616928,0.164875,38557.0,38551.0,0.06487058]
[1643742617325,0.1,38557.0,38551.0,0.06487058]
[1643742617529,0.08041538,38557.0,38551.0,0.06487058]
[1643742617825,0.01935427,38556.0,38551.0,0.06487058]
[1643742618071,0.26444451,38556.0,38551.0,0.06487058]
[1643742618474,0.01935427,38556.0,38551.0,0.06487058]
[1643742618673,0.00138602,38560.0,38552.0,0.03628202]
[1643742618878,0.33962231,38563.0,38555.0,0.04260867]
[1643742619077,0.00138601,38560.0,38555.0,0.04260867]
[1643742619273,0.00138601,38560.0,38555.0,0.09260867]
[1643742619473,0.02101175,38560.0,38555.0,0.09260867]
[1643742619672,0.00138601,38560.0,38555.0,0.09260867]
[1643742620084,0.064868,38562.0,38555.0,0.09260867]
[1643742620085,0.30582403,38562.0,38555.0,0.09260867]
[1643742620275,0.00138609,38560.0,38555.0,0.05]
[1643742620973,0.36462216,38560.0,38555.0,0.05]
[1643742621373,0.36323607,38560.0,38555.0,0.05]
[1643742621572,0.36462216,38560.0,38555.0,0.05]
[1643742622218,0.36202097,38560.0,38555.0,0.05]
[1643742622416,0.36063488,38560.0,38555.0,0.05]
[1643742622620,0.35917636,38560.0,38555.0,0.05]
[1643742622818,0.10352576,38560.0,38555.0,0.05]
[1643742623317,0.00138609,38560.0,38555.0,0.05]
[1643742623818,0.064868,38562.0,38555.0,0.05]
[1643742624018,0.00138609,38560.0,38555.0,0.05]
[1643742624819,0.064868,38562.0,38555.0,0.05]
[1643742625221,0.00138609,38560.0,38555.0,0.05]
[1643742626068,0.23901599,38561.0,38555.0,0.05]
[1643742626269,0.00138609,38560.0,38555.0,0.05]
[1643742627271,0.23980223,38561.0,38555.0,0.05]
[1643742627470,0.00138609,38560.0,38555.0,0.05]
[1643742628469,0.23980223,38561.0,38555.0,0.05]
[1643742628670,0.00124008,38560.0,38555.0,0.05]
[1643742629334,0.06610908,38560.0,38555.0,0.05]
[1643742629533,0.23970208,38559.0,38555.0,0.08308361]
[1643742629932,0.06610908,38560.0,38555.0,0.08308361]
[1643742630333,0.06610908,38560.0,38555.0,0.09418555]
[1643742630536,0.06610908,38560.0,38555.0,0.05]
[1643742630736,0.06110908,38560.0,38555.0,0.05]
[1643742630935,0.68678699,38563.0,38555.0,0.08614707]
[1643742630936,0.75165099,38563.0,38555.0,0.08614707]
[1643742631233,0.00124008,38560.0,38557.0,0.06486159]
[1643742631434,0.00124008,38560.0,38557.0,0.01107172]
[1643742632035,0.01923396,38562.0,38557.0,0.01107172]
[1643742632435,0.00124007,38560.0,38557.0,0.01107172]
[1643742633472,0.00125638,38560.0,38557.0,0.01107172]
[1643742634573,0.064866,38561.0,38557.0,0.01107172]
[1643742634871,0.00125638,38560.0,38557.0,0.01107172]
[1643742635673,0.064866,38561.0,38557.0,0.01107172]
[1643742636070,0.00125638,38560.0,38557.0,0.01107172]
[1643742636922,0.064866,38561.0,38557.0,0.01107172]
[1643742637121,0.00125456,38560.0,38557.0,0.01107172]
[1643742638124,0.064866,38561.0,38557.0,0.01107172]
[1643742638326,0.00125456,38560.0,38557.0,0.01107172]
[1643742639323,0.064866,38561.0,38557.0,0.01107172]
[1643742639523,0.00125456,38560.0,38557.0,0.01107172]
[1643742640570,0.66361371,38563.0,38557.0,0.01107172]
[1643742640771,0.00125476,38560.0,38557.0,0.01107172]
[1643742641171,0.00125476,38560.0,38556.0,0.06486294]
[1643742641573,0.00125476,38560.0,38555.0,0.03899013]
[1643742641771,0.1,38562.0,38556.0,0.0331945]
[1643742641971,0.1,38562.0,38554.0,0.05]
[1643742641972,0.00125477,38560.0,38554.0,0.05]
[1643742642175,0.00125477,38560.0,38553.0,0.04101011]
[1643742642374,0.11007143,38560.0,38552.0,0.05]
[1643742642775,0.11007143,38560.0,38552.0,0.1]
[1643742643074,0.54001104,38562.0,38552.0,0.1]
[1643742643275,0.54001104,38562.0,38554.0,0.06486797]
[1643742643276,0.00125475,38560.0,38554.0,0.06486797]
[1643742643479,0.02088447,38560.0,38554.0,0.06486797]
[1643742644076,0.01962972,38560.0,38554.0,0.06486797]
[1643742644321,0.32450078,38560.0,38554.0,0.06486797]
[1643742644519,0.38936878,38560.0,38554.0,0.06486797]
[1643742644721,0.32324604,38558.0,38554.0,0.06486797]
[1643742644922,0.29420723,38555.0,38554.0,0.06486797]
[1643742645125,0.64384623,38555.0,38554.0,0.06486797]
[1643742646124,0.349639,38555.0,38554.0,0.06486797]
[1643742646422,0.07586767,38556.0,38554.0,0.06486797]
[1643742647722,0.33875108,38556.0,38554.0,0.06486797]
[1643742648170,0.33875108,38556.0,38554.0,0.06456797]
[1643742648371,0.33875108,38556.0,38554.0,0.06426797]
[1643742649171,0.33875108,38556.0,38551.0,0.19459882]
[1643742649372,0.33875108,38556.0,38549.0,0.13094462]
[1643742649373,0.43525464,38555.0,38549.0,0.13094462]
[1643742649570,0.43525464,38555.0,38549.0,0.00120369]
[1643742649571,0.67288504,38554.0,38549.0,0.00120369]
[1643742649773,0.76324415,38553.0,38549.0,0.00120369]
[1643742649970,0.349639,38552.0,38549.0,0.00120369]
[1643742650170,0.44359849,38551.0,38541.0,0.41350942]
[1643742650371,0.44359849,38551.0,38544.0,0.12975946]
[1643742650372,0.30031831,38546.0,38544.0,0.12975946]
[1643742650573,0.0519,38545.0,38544.0,0.12975946]
[1643742651474,0.1519,38545.0,38544.0,0.12975946]
[1643742652321,0.0519,38545.0,38544.0,0.12975946]
[1643742652522,0.1519,38545.0,38544.0,0.02015263]
[1643742653322,0.1519,38545.0,38543.0,0.00120389]
[1643742653527,1.60582989,38544.0,38543.0,0.00120389]
[1643742653726,1.60582989,38544.0,38540.0,0.01348]
[1643742653727,2.15736889,38544.0,38540.0,0.01348]
[1643742653929,2.15736889,38544.0,38542.0,0.00120391]
[1643742653930,0.449639,38543.0,38542.0,0.00120391]
[1643742654130,2.50975252,38543.0,38542.0,0.00120391]
[1643742654332,2.18650648,38543.0,38542.0,0.00120391]
[1643742654729,2.25140148,38543.0,38542.0,0.00120391]
[1643742654926,2.25140148,38543.0,38540.0,0.0031]
[1643742655126,2.25140148,38543.0,38541.0,0.00120396]
[1643742655327,1.68496748,38542.0,38541.0,0.00120396]
[1643742655573,2.08650648,38542.0,38541.0,0.00120396]
[1643742655777,2.18650648,38542.0,38541.0,0.00120396]
[1643742656173,2.18650648,38542.0,38540.0,0.0031]
[1643742656373,2.11908987,38541.0,38540.0,0.00430399]
[1643742656573,2.17098987,38541.0,38540.0,0.00430399]
[1643742657374,2.17098987,38541.0,38540.0,0.0031]
[1643742657375,2.07098987,38541.0,38540.0,0.0031]
[1643742657675,2.17098987,38541.0,38540.0,0.0031]
[1643742660226,2.07098987,38541.0,38540.0,0.0031]
[1643742661827,2.17098987,38541.0,38540.0,0.0031]
[1643742663172,0.77098987,38541.0,38540.0,0.0031]
[1643742663374,0.401539,38541.0,38540.0,0.0031]
[1643742663573,0.1,38547.0,38540.0,0.0031]
[1643742663574,0.43686748,38547.0,38540.0,0.0031]
[1643742663772,0.349639,38546.0,38540.0,0.0031]
[1643742663973,0.43686748,38547.0,38542.0,0.16710537]
[1643742663974,0.28496748,38547.0,38542.0,0.16710537]
[1643742664174,0.28496748,38549.0,38542.0,0.16710537]
[1643742664373,0.32324604,38555.0,38542.0,0.21710537]
[1643742664374,0.65170159,38552.0,38542.0,0.21710537]
[1643742664582,0.28496748,38550.0,38542.0,0.21710537]
[1643742664775,0.28496748,38550.0,38544.0,0.06608174]
[1643742664975,0.10461901,38552.0,38544.0,0.06608174]
[1643742664976,0.03973901,38552.0,38544.0,0.06608174]
[1643742665373,0.28496748,38554.0,38544.0,0.06608174]
[1643742665775,0.28496748,38554.0,38544.0,0.06487788]
[1643742665975,0.28496748,38554.0,38547.0,0.00120375]
[1643742666175,0.02192039,38551.0,38548.0,0.0648733]
[1643742666375,0.28496748,38554.0,38548.0,0.0648733]
[1643742666576,0.23813884,38552.0,38548.0,0.0648733]
[1643742666832,0.349639,38551.0,38547.0,0.00120375]
[1643742667030,0.24238106,38550.0,38544.0,0.064879]
[1643742667234,0.29194596,38554.0,38548.0,0.00120372]
[1643742667431,0.349639,38553.0,38548.0,0.00120372]
[1643742667634,0.24280215,38552.0,38548.0,0.00120372]
[1643742667831,0.349639,38551.0,38548.0,0.00120372]
[1643742668033,0.58990356,38551.0,38548.0,0.00120372]
[1643742668232,0.22295923,38550.0,38546.0,0.12974659]
[1643742668434,0.22295923,38550.0,38548.0,0.00120374]
[1643742668633,1.249639,38549.0,38548.0,0.00120374]
[1643742668833,0.349639,38549.0,38548.0,0.00120374]
[1643742669033,0.24035314,38553.0,38548.0,0.00120374]
[1643742669233,0.349639,38552.0,38548.0,0.00120374]
[1643742669534,0.349639,38552.0,38542.0,0.34685837]
[1643742669535,0.24437489,38551.0,38549.0,0.00120371]
[1643742669737,1.399639,38550.0,38549.0,0.00120371]
[1643742670133,1.499639,38550.0,38549.0,0.00120371]
[1643742670584,1.464523,38550.0,38542.0,0.34685837]
[1643742670783,0.09004304,38555.0,38548.0,0.00120374]
[1643742670985,0.03814304,38555.0,38548.0,0.1309437]
[1643742671382,0.03814304,38555.0,38548.0,0.1809437]
[1643742671580,0.02171337,38550.0,38548.0,0.1809437]
[1643742671782,0.03814304,38555.0,38548.0,0.1809437]
[1643742671783,0.03814304,38555.0,38548.0,0.17973996]
[1643742671984,0.03814304,38555.0,38549.0,0.06607169]
[1643742672184,0.03814304,38555.0,38549.0,0.13094167]
[1643742672385,0.98708879,38560.0,38549.0,0.13094167]
[1643742672386,0.1,38558.0,38549.0,0.13094167]
[1643742672584,0.1,38558.0,38549.0,0.06607169]
[1643742672783,0.2138768,38560.0,38549.0,0.06607169]
[1643742672985,0.349639,38559.0,38549.0,0.064868]
[1643742673283,0.1,38558.0,38549.0,0.06607169]
[1643742673685,0.00125469,38560.0,38554.0,0.24620748]
[1643742673886,0.00125469,38560.0,38555.0,0.114861]
[1643742674088,0.00898149,38558.0,38555.0,0.16067166]
[1643742674328,0.00898149,38558.0,38556.0,0.03747684]
[1643742674528,0.00898149,38558.0,38557.0,0.013]
[1643742674729,0.00898149,38558.0,38557.0,0.05041318]
[1643742674933,0.00898149,38558.0,38557.0,0.513]
[1643742675129,0.00898149,38558.0,38557.0,0.613]
[1643742675530,0.32324604,38570.0,38567.0,0.14412152]
[1643742675729,0.349639,38569.0,38558.0,1.15]
[1643742675929,0.32324604,38570.0,38562.0,0.129684]
[1643742676330,0.32324604,38570.0,38563.0,0.05]
[1643742676530,0.16664781,38572.0,38564.0,0.05]
[1643742676531,0.31824604,38572.0,38564.0,0.05]
[1643742676729,0.25911126,38573.0,38564.0,0.05]
[1643742676730,0.25911126,38573.0,38566.0,0.22153222]
[1643742676929,0.00125461,38568.0,38566.0,0.27153222]
[1643742677731,0.31616012,38573.0,38566.0,0.1]
[1643742677983,0.31616012,38573.0,38561.0,0.30876561]
[1643742677984,0.0012546,38569.0,38561.0,0.30876561]
[1643742678177,0.0012546,38569.0,38561.0,0.05]
[1643742678376,0.0012546,38569.0,38559.0,0.3325]
[1643742678774,0.27066863,38565.0,38559.0,0.48078248]
[1643742678973,0.27066863,38565.0,38559.0,0.14828248]
[1643742679173,0.00111932,38564.0,38559.0,0.14828248]
[1643742679975,0.2267,38572.0,38560.0,0.35]
[1643742680279,0.42541373,38574.0,38562.0,0.06484069]
[1643742680574,0.34003388,38575.0,38562.0,0.06484069]
[1643742680975,0.349639,38574.0,38560.0,0.1]
[1643742681175,0.23136568,38567.0,38560.0,0.05]
[1643742681375,0.23136568,38567.0,38561.0,0.05]
[1643742681579,0.22877229,38567.0,38560.0,0.05]
[1643742681825,0.22877229,38567.0,38559.0,0.24828248]
[1643742684126,0.00138719,38566.0,38559.0,0.24828248]
[1643742684333,0.00138719,38566.0,38559.0,0.24328248]
[1643742684528,0.00138719,38566.0,38559.0,0.55168965]
[1643742684727,0.00138719,38566.0,38559.0,0.25365848]
[1643742684927,0.00138719,38566.0,38559.0,0.55023766]
[1643742685130,0.1,38575.0,38560.0,0.03737862]
[1643742685331,0.00138718,38566.0,38561.0,0.04015724]
[1643742685581,0.00138718,38566.0,38565.0,0.80381302]
[1643742685978,0.00138718,38566.0,38565.0,0.85381302]
[1643742686178,0.10194062,38575.0,38565.0,0.25381302]
[1643742686579,0.00138719,38567.0,38565.0,0.25381302]
[1643742687581,0.23211456,38579.0,38565.0,0.25381302]
[1643742687582,0.01884654,38572.0,38565.0,0.31864302]
[1643742687778,0.00125142,38568.0,38565.0,0.31864302]
[1643742688179,0.00125142,38568.0,38566.0,0.35859911]
[1643742688380,0.00125142,38568.0,38567.0,0.96994299]
[1643742688579,0.23595336,38578.0,38567.0,0.7]
[1643742688778,0.23595336,38578.0,38571.0,0.15783226]
[1643742688779,0.33303751,38578.0,38571.0,0.15783226]
[1643742688979,0.0050048,38576.0,38571.0,0.15783226]
[1643742689221,0.0050048,38576.0,38571.0,0.25783226]
[1643742689424,0.0050048,38576.0,38571.0,0.05]
[1643742689623,0.0050048,38576.0,38572.0,0.05]
[1643742689824,0.10048652,38580.0,38568.0,0.05]
[1643742690024,0.0219969,38578.0,38566.0,0.3338]
[1643742690226,0.00125133,38575.0,38566.0,0.3338]
[1643742690424,0.00125133,38575.0,38569.0,0.14126443]
[1643742690629,0.00125133,38575.0,38569.0,0.19126443]
[1643742690926,0.00125133,38575.0,38569.0,0.24126443]
[1643742691125,0.0219969,38578.0,38569.0,0.24126443]
[1643742691425,0.00128189,38574.0,38569.0,0.24126443]
[1643742692224,0.09101236,38577.0,38569.0,0.24126443]
[1643742692225,0.23959906,38576.0,38569.0,0.24126443]
[1643742692425,0.00128189,38573.0,38569.0,0.24126443]
[1643742693073,0.00512681,38579.0,38569.0,0.24126443]
[1643742693280,1.16424218,38587.0,38569.0,0.24126443]
[1643742693281,0.41675857,38581.0,38570.0,0.95]
[1643742693870,0.41675857,38581.0,38571.0,0.24856928]
[1643742694072,0.01946926,38578.0,38571.0,0.24856928]
[1643742694271,0.01946926,38578.0,38576.0,0.18311135]
[1643742694472,0.04951365,38573.0,38572.0,0.47877152]
[1643742696273,0.04951365,38573.0,38572.0,0.52877152]
[1643742696726,0.04951365,38573.0,38572.0,1.27877152]
[1643742697127,0.04951365,38573.0,38572.0,0.52877152]
[1643742697529,0.04951365,38573.0,38572.0,0.22414893]
[1643742697730,0.04951365,38573.0,38572.0,0.92414893]
[1643742697930,0.04951365,38573.0,38572.0,1.22580503]
[1643742698734,0.04951365,38573.0,38572.0,1.32580503]
[1643742698933,0.04951365,38573.0,38572.0,1.33374862]
[1643742699536,0.28334991,38591.0,38572.0,1.33374862]
[1643742699537,0.27597412,38593.0,38573.0,1.52961]
[1643742699836,0.00139221,38581.0,38580.0,0.25639237]
[1643742700034,0.00689221,38589.0,38581.0,0.8]
[1643742700336,0.00689221,38589.0,38586.0,0.18896448]
[1643742700579,0.00689221,38589.0,38586.0,0.28896448]
[1643742700780,0.42,38591.0,38586.0,0.28896448]
[1643742702482,0.42,38591.0,38586.0,0.35375348]
[1643742702680,0.42,38591.0,38587.0,0.00522558]
[1643742702881,0.42,38591.0,38586.0,0.59271841]
[1643742703208,0.25023264,38604.0,38590.0,0.00612473]
[1643742703209,0.2506842,38604.0,38590.0,0.00612473]
[1643742703381,0.00019305,38608.0,38597.0,0.15838505]
[1643742703382,0.10798206,38608.0,38597.0,0.15838505]
[1643742703780,0.10798206,38608.0,38597.0,0.25838505]
[1643742704239,0.29341528,38603.0,38597.0,0.25838505]
[1643742704540,0.0900757,38601.0,38597.0,0.25838505]
[1643742704741,0.00125894,38604.0,38597.0,0.25838505]
[1643742705143,0.00125894,38604.0,38598.0,0.30866817]
[1643742705341,0.00125894,38604.0,38597.0,0.25838505]
[1643742705641,0.00134328,38603.0,38597.0,0.05]
[1643742705841,0.00134328,38603.0,38598.0,0.05]
[1643742706040,0.00134328,38603.0,38592.0,0.010367]
[1643742706250,0.09886262,38596.0,38592.0,0.010367]
[1643742706845,0.152106,38596.0,38592.0,0.010367]
[1643742707443,0.26315528,38593.0,38592.0,0.010367]
[1643742708977,0.51038162,38593.0,38592.0,0.010367]
[1643742709176,0.26315528,38593.0,38592.0,0.010367]
[1643742709377,0.26534295,38595.0,38592.0,0.010367]
[1643742709778,0.09886262,38596.0,38592.0,0.010367]
[1643742710577,0.11581452,38595.0,38586.0,0.17077334]
[1643742710778,0.24100807,38594.0,38588.0,0.0453325]
[1643742710976,0.34420106,38596.0,38586.0,0.17077334]
[1643742711177,0.09886262,38596.0,38586.0,0.17077334]
[1643742711380,0.09886262,38596.0,38588.0,0.03647168]
[1643742711589,0.09886262,38596.0,38586.0,0.2170418]
[1643742711826,0.09886262,38596.0,38588.0,0.04159417]
[1643742712024,0.09886262,38596.0,38589.0,0.04018773]
[1643742712225,0.01876955,38594.0,38591.0,0.04195353]
[1643742712424,0.09886262,38596.0,38591.0,0.04195353]
[1643742712625,0.23914146,38599.0,38591.0,0.04195353]
[1643742712827,0.00134338,38595.0,38591.0,0.04195353]
[1643742713026,0.00134338,38595.0,38587.0,0.31259006]
[1643742713328,0.00134338,38595.0,38593.0,0.33648312]
[1643742713529,0.00134338,38595.0,38594.0,0.0397507]
[1643742713725,0.00134338,38595.0,38592.0,0.10098438]
[1643742713929,0.09331297,38603.0,38594.0,0.04654664]
[1643742714125,0.00134336,38596.0,38595.0,0.15805591]
[1643742714326,0.00134336,38596.0,38595.0,0.25805591]
[1643742714526,0.00134336,38596.0,38595.0,0.65805591]
[1643742714926,0.00134336,38596.0,38595.0,0.65023742]
[1643742715131,1.1601,38612.0,38597.0,0.00760566]
[1643742715325,1.1601,38612.0,38598.0,0.00729274]
[1643742715326,0.00537258,38603.0,38598.0,0.00729274]
[1643742715578,0.01806497,38601.0,38596.0,0.1]
[1643742715779,0.01806497,38601.0,38596.0,0.00570189]
[1643742715979,0.00537258,38603.0,38595.0,0.65807552]
[1643742716378,0.30690565,38611.0,38595.0,0.65807552]
[1643742716683,0.30690565,38611.0,38594.0,0.010366]
[1643742716684,0.12480452,38596.0,38589.0,0.2304]
[1643742716878,0.12480452,38596.0,38582.0,0.7368]
[1643742716879,0.33505884,38595.0,38582.0,0.7368]
[1643742717081,0.33505884,38595.0,38580.0,0.7702]
[1643742717082,0.33505884,38595.0,38581.0,0.5756]
[1643742717278,0.33505884,38595.0,38581.0,0.00644126]
[1643742717481,0.33505884,38595.0,38580.0,0.77793473]
[1643742717782,0.33505884,38595.0,38589.0,0.14102645]
[1643742717783,0.00127164,38590.0,38589.0,0.14102645]
[1643742717979,0.00127164,38590.0,38589.0,0.19102645]
[1643742718179,0.00127164,38590.0,38589.0,0.24647179]
[1643742718380,0.00127164,38590.0,38589.0,0.24102645]
[1643742718579,0.00127164,38590.0,38589.0,0.69102645]
[1643742718782,0.0519,38598.0,38589.0,0.69102645]
[1643742718986,0.00127162,38591.0,38589.0,0.55]
[1643742719426,7.162e-05,38591.0,38589.0,0.55]
[1643742719625,0.00508572,38597.0,38590.0,1.4]
[1643742719827,0.01876716,38603.0,38591.0,0.2293]
[1643742720028,0.01876716,38603.0,38591.0,0.2793]
[1643742720227,0.25755068,38603.0,38591.0,0.2793]
[1643742720527,0.01876716,38603.0,38591.0,0.2793]
[1643742720727,0.01876716,38603.0,38592.0,0.30577038]
[1643742721127,0.01876716,38603.0,38592.0,0.42054838]
[1643742721326,0.09881134,38603.0,38592.0,0.35577038]
[1643742721527,0.09881134,38603.0,38592.0,0.40577038]
[1643742721731,0.01876716,38603.0,38598.0,0.17655063]
[1643742721928,0.28988775,38606.0,38598.0,0.17655063]
[1643742722126,0.28988775,38606.0,38598.0,0.27655063]
[1643742722729,0.08829406,38602.0,38599.0,0.05]
[1643742722984,1.4,38605.0,38599.0,0.05]
[1643742723176,1.4,38605.0,38592.0,0.30439355]
[1643742723474,1.4,38605.0,38593.0,0.064779]
[1643742723676,0.00140077,38600.0,38593.0,0.15912407]
[1643742724089,0.23339936,38600.0,38593.0,0.15912407]
[1643742724279,0.23339936,38600.0,38593.0,0.25912407]
[1643742724474,0.23339936,38600.0,38594.0,0.04666479]
[1643742724678,0.09154528,38602.0,38594.0,0.09666479]
[1643742724879,0.0014008,38598.0,38595.0,0.03681146]
[1643742725077,0.0014008,38598.0,38596.0,0.04379388]
[1643742725276,0.0014008,38598.0,38597.0,0.04197807]
[1643742725477,0.0014008,38598.0,38597.0,0.03697603]
[1643742725678,0.0014008,38598.0,38593.0,0.31716423]
[1643742725878,1.66880857,38605.0,38598.0,0.04168932]
[1643742726078,0.00140079,38599.0,38594.0,0.05]
[1643742726278,0.00140079,38599.0,38595.0,0.04177548]
[1643742726479,0.00140079,38599.0,38594.0,0.05]
[1643742726727,0.00140079,38599.0,38596.0,0.04522066]
[1643742726933,0.00140079,38599.0,38591.0,0.08850346]
[1643742727130,0.10484667,38600.0,38591.0,0.05]
[1643742727328,0.10484667,38600.0,38591.0,0.08710914]
[1643742727329,0.23233839,38596.0,38591.0,0.08710914]
[1643742727528,0.23233839,38596.0,38591.0,0.14347542]
[1643742727529,0.09602756,38595.0,38591.0,0.14347542]
[1643742727829,0.09602756,38595.0,38591.0,0.1]
[1643742728029,0.09602756,38595.0,38589.0,0.04477972]
[1643742728228,0.09602756,38595.0,38589.0,0.04076918]
[1643742728429,1.20482706,38601.0,38600.0,0.61973405]
[1643742728629,1.30812374,38601.0,38600.0,0.61973405]
[1643742728829,1.56918159,38601.0,38600.0,0.61973405]
[1643742729032,1.62108159,38601.0,38600.0,0.61973405]
[1643742730230,1.97072059,38601.0,38600.0,0.61973405]
[1643742730874,2.07072059,38601.0,38600.0,0.61973405]
[1643742731073,0.10298469,38592.0,38589.0,0.16293871]
[1643742731575,0.0519,38597.0,38589.0,0.16293871]
[1643742731976,0.0519,38597.0,38589.0,0.26293871]
[1643742732173,0.15997183,38597.0,38591.0,0.00126032]
[1643742732374,0.28131825,38595.0,38591.0,0.00126032]
[1643742732574,0.38575738,38595.0,38591.0,0.00126032]
[1643742732773,0.28131825,38595.0,38591.0,0.00126032]
[1643742732973,0.15997183,38597.0,38591.0,0.00126032]
[1643742733176,0.15997183,38597.0,38588.0,0.04673238]
[1643742733376,0.15997183,38597.0,38591.0,0.00126032]
[1643742733775,0.27175764,38597.0,38591.0,0.00126032]
[1643742733976,0.28527567,38596.0,38591.0,0.00126032]
[1643742734423,0.52188862,38596.0,38589.0,0.26220483]
[1643742734627,0.52188862,38596.0,38592.0,0.0012603]
[1643742734823,0.52196829,38596.0,38592.0,0.0012603]
[1643742735024,0.52206157,38596.0,38592.0,0.0012603]
[1643742735224,0.17982461,38597.0,38592.0,0.0012603]
[1643742735427,0.07175278,38597.0,38592.0,0.0012603]
[1643742735628,0.01985278,38597.0,38590.0,0.00600091]
[1643742735824,0.01985278,38597.0,38593.0,0.00126027]
[1643742736225,0.04167244,38597.0,38595.0,0.04086554]
[1643742736528,0.227,38600.0,38595.0,0.04086554]
[1643742736529,0.10382327,38600.0,38595.0,0.04086554]
[1643742736725,0.23996432,38599.0,38591.0,0.0346605]
[1643742736926,0.77537927,38594.0,38593.0,0.00126027]
[1643742737328,0.12037927,38594.0,38593.0,0.00126027]
[1643742737627,0.2909737,38601.0,38593.0,0.00126027]
[1643742737827,0.01989377,38598.0,38593.0,0.00126027]
[1643742738076,0.28957125,38601.0,38593.0,0.00126027]
[1643742738275,0.29097372,38601.0,38593.0,0.00126027]
[1643742738876,0.46451607,38601.0,38593.0,0.00126027]
[1643742739076,0.09881075,38595.0,38589.0,0.3066722]
[1643742739277,0.09881075,38595.0,38593.0,0.00097671]
[1643742739477,0.73640088,38594.0,38593.0,0.00097671]
[1643742739683,0.79393416,38594.0,38593.0,0.00097671]
[1643742740276,1.60698324,38594.0,38587.0,0.010368]
[1643742740475,1.60698324,38594.0,38592.0,0.00097673]
[1643742740677,1.1188159,38593.0,38592.0,0.00097673]
[1643742740877,1.1707159,38593.0,38592.0,0.00097673]
[1643742741579,1.5203549,38593.0,38587.0,0.010368]
[1643742741828,0.349636,38592.0,38587.0,0.010368]
[1643742742027,0.4079078,38591.0,38587.0,0.010368]
[1643742742228,0.349636,38590.0,38587.0,0.010368]
[1643742742428,0.7118279,38589.0,38573.0,0.0423703]
[1643742742629,0.7118279,38589.0,38572.0,0.0011]
[1643742742630,0.6487,38585.0,38572.0,0.0011]
[1643742742928,0.08137943,38574.0,38572.0,0.0011]
[1643742743226,0.0519,38573.0,38572.0,0.0011]
[1643742743428,0.14065712,38573.0,38572.0,0.0011]
[1643742743730,0.71854902,38573.0,38572.0,0.0011]
[1643742744226,2.21854902,38573.0,38572.0,0.0011]
[1643742744430,2.21854902,38573.0,38571.0,0.00083614]
[1643742744431,1.4,38572.0,38571.0,0.00083614]
[1643742744629,1.749636,38572.0,38571.0,0.00083614]
[1643742744829,1.94902255,38572.0,38571.0,0.00083614]
[1643742745227,1.64902255,38572.0,38571.0,0.00031315]
[1643742745484,1.501536,38572.0,38571.0,0.00031315]
[1643742745676,0.401536,38572.0,38571.0,0.00031315]
[1643742746081,0.0519,38572.0,38571.0,0.00031315]
[1643742747177,0.6019,38572.0,38571.0,0.00031315]
[1643742747778,0.0519,38572.0,38571.0,0.00031315]
[1643742749233,0.5019,38572.0,38571.0,0.00031315]
[1643742749631,0.0519,38572.0,38571.0,0.00031315]
[1643742752030,0.9519,38572.0,38571.0,0.00031315]
[1643742755079,1.4,38571.0,38570.0,0.00213517]
[1643742755284,1.849636,38571.0,38570.0,0.00213517]
[1643742755479,1.901536,38571.0,38570.0,0.00213517]
[1643742755679,1.4,38569.0,38567.0,0.010373]
[1643742755880,1.4,38569.0,38564.0,0.002]
[1643742755881,0.73578292,38568.0,38564.0,0.002]
[1643742756081,0.73578292,38568.0,38556.0,0.0011]
[1643742756082,1.4,38566.0,38556.0,0.0011]
[1643742756287,0.064874,38563.0,38556.0,0.0011]
[1643742756479,0.7487,38561.0,38556.0,0.0011]
[1643742756741,0.89157907,38560.0,38556.0,0.0011]
[1643742756943,0.89157907,38560.0,38552.0,0.0522]
[1643742756944,1.375,38559.0,38552.0,0.0522]
[1643742757148,1.375,38559.0,38544.0,0.0031]
[1643742757149,0.58598671,38552.0,38544.0,0.0031]
[1643742757347,0.566433,38551.0,38544.0,0.0031]
[1643742757846,0.501536,38551.0,38544.0,0.0031]
[1643742758539,0.501536,38551.0,38548.0,0.00235656]
[1643742759640,0.501536,38551.0,38548.0,0.0011]
[1643742759941,0.501536,38551.0,38548.0,0.00235656]
[1643742760782,0.501536,38551.0,38548.0,0.0011]
[1643742760984,0.501536,38551.0,38548.0,0.00235656]
[1643742761982,0.501536,38551.0,38548.0,0.0011]
[1643742762180,0.501536,38551.0,38548.0,0.00172828]
[1643742762381,0.24735894,38550.0,38548.0,0.00172828]
[1643742762584,1.501536,38549.0,38548.0,0.00172828]
[1643742763184,1.501536,38549.0,38548.0,0.0011]
[1643742763381,0.401536,38549.0,38548.0,0.0011]
[1643742764242,0.07075495,38560.0,38548.0,0.0011]
[1643742764640,0.07268784,38560.0,38548.0,0.0011]
[1643742764841,0.31603634,38560.0,38550.0,0.21943031]
[1643742765041,0.18250171,38560.0,38553.0,0.16583855]
[1643742765241,0.13060171,38560.0,38553.0,0.26212155]
[1643742765439,0.13060171,38560.0,38553.0,0.26583855]
[1643742765640,0.13060171,38560.0,38553.0,0.31490507]
[1643742765842,0.13049568,38560.0,38555.0,0.00125633]
[1643742766041,0.10981387,38560.0,38555.0,0.00125633]
[1643742766439,0.09118881,38558.0,38555.0,0.00125633]
[1643742766839,0.09118881,38558.0,38553.0,0.26583855]
[1643742767041,0.09118881,38558.0,38555.0,0.00125633]
[1643742768082,0.0908312,38558.0,38555.0,0.00125633]
[1643742768287,0.0908312,38558.0,38548.0,0.04396943]
[1643742768288,4.607e-05,38554.0,38549.0,0.00502609]
[1643742768492,1.09855225,38550.0,38549.0,0.00502609]
[1643742768686,1.401536,38550.0,38549.0,0.00502609]
[1643742769184,1.401536,38550.0,38548.0,0.0011]
[1643742769185,1.49006005,38550.0,38548.0,0.0011]
[1643742769384,0.349636,38549.0,38548.0,0.0011]
[1643742769584,0.501536,38549.0,38548.0,0.0011]
[1643742769785,0.62521566,38549.0,38548.0,0.0011]
[1643742769984,0.91380905,38549.0,38548.0,0.0011]
[1643742770184,0.62521566,38549.0,38548.0,0.0011]
[1643742770885,0.62521566,38549.0,38544.0,0.0031]
[1643742770886,1.4,38548.0,38544.0,0.0031]
[1643742771091,0.72624492,38547.0,38544.0,0.0031]
[1643742771286,0.82624492,38547.0,38544.0,0.0031]